fUSD/lending_fUSD_20240301
["ID","MTS","AMOUNT","RATE_DAILY","PERIOD"]
[316031702,1709328688705,-500.0,0.00022904,2]
[316031703,1709328688714,-500.0,0.00022904,2]
[316031704,1709328688723,-500.0,0.00022904,2]
[316031705,1709328688733,-500.0,0.00022904,2]
[316031706,1709328688742,-500.0,0.00022904,2]
[316031707,1709328688752,-1262.24,0.00022904,2]
[316031708,1709328688761,-2674.55,0.00022904,2]
[316031709,1709328688771,-1341.14,0.00022904,2]
[316031710,1709328688781,-2092.42,0.00022904,2]
[316031711,1709328688791,-500.0,0.00022904,2]
[316031712,1709328688801,-3554.37,0.00022904,2]
[316031713,1709328688811,-22031.57,0.00022904,2]
[316031714,1709328688821,-701.99,0.00022904,2]
[316031715,1709328688830,-1064.52,0.00022904,2]
[316031716,1709328688840,-639.85,0.00022904,2]
[316031717,1709328688850,-5388.16,0.00022904,2]
[316031718,1709328688859,-12964.37,0.00022904,2]
[316031719,1709328688870,-627.03,0.00022904,2]
[316031720,1709328688879,-1232.9,0.00022904,2]
[316031721,1709328688889,-500.0,0.00022904,2]
[316031722,1709328688899,-19234.87,0.00022904,2]
[316031723,1709328688910,-500.0,0.00022904,2]
[316031724,1709328688920,-625.28,0.00022904,2]
[316031725,1709328688930,-879.42,0.00022904,2]
[316031726,1709328688940,-1030.09,0.00022904,2]
[316031727,1709328688950,-500.0,0.00022904,2]
[316031728,1709328688960,-591.46,0.00022904,2]
[316031729,1709328688969,-500.0,0.00022904,2]
[316031730,1709328688979,-525.33,0.00022904,2]
[316031731,1709328688988,-2623.39,0.00022904,2]
[316031732,1709328688998,-416.80582807,0.00022904,2]
[316031733,1709328689008,-718.91,0.00022904,2]
[316031734,1709328689018,-768.4,0.00022904,2]
[316031735,1709328689027,-500.0,0.00022904,2]
[316031736,1709328689043,-3801.92,0.00022904,2]
[316031737,1709328689054,-562.14,0.00022904,2]
[316031738,1709328689064,-3047.53,0.00022904,2]
[316031739,1709328689075,-500.0,0.00022904,2]
[316031740,1709328689085,-500.0,0.00022904,2]
[316031741,1709328689097,-1310.43,0.00022904,2]
[316031742,1709328689106,-500.0,0.00022904,2]
[316031743,1709328689118,-823.12,0.00022904,2]
[316031744,1709328689129,-500.0,0.00022904,2]
[316031745,1709328689139,-500.0,0.00022904,2]
[316031746,1709328689149,-716.56,0.00022904,2]
[316031747,1709328689161,-500.0,0.00022904,2]
[316031748,1709328689172,-2376.01,0.00022904,2]
[316031749,1709328689182,-3381.92,0.00022904,2]
[316031750,1709328689192,-866.15,0.00022904,2]
[316031751,1709328689203,-500.0,0.00022904,2]
[316031752,1709328689215,-841.14,0.00022904,2]
[316031753,1709328689225,-1258.66,0.00022904,2]
[316031754,1709328689236,-577.75,0.00022904,2]
[316031755,1709328689246,-500.0,0.00022904,2]
[316031756,1709328689257,-943.35,0.00022904,2]
[316031757,1709328689268,-652.2,0.00022904,2]
[316031758,1709328689278,-1224.0,0.00022904,2]
[316031759,1709328689289,-864.99,0.00022904,2]
[316031760,1709328689299,-820.32,0.00022904,2]
[316031761,1709328689310,-612.09,0.00022904,2]
[316031762,1709328689321,-500.0,0.00022904,2]
[316031763,1709328689332,-2359.92,0.00022904,2]
[316031764,1709328689342,-500.0,0.00022904,2]
[316031765,1709328689352,-500.0,0.00022904,2]
[316031766,1709328689362,-716.08,0.00022904,2]
[316031767,1709328689373,-1817.57,0.00022904,2]
[316031768,1709328689383,-819.32,0.00022904,2]
[316031769,1709328689393,-1515.63,0.00022904,2]
[316031770,1709328689404,-500.0,0.00022904,2]
[316031771,1709328689414,-777.15,0.00022904,2]
[316031772,1709328689424,-591.97,0.00022904,2]
[316031773,1709328689434,-1444.25,0.00022904,2]
[316031774,1709328689444,-890.54,0.00022904,2]
[316031775,1709328689453,-500.0,0.00022904,2]
[316031776,1709328689463,-500.0,0.00022904,2]
[316031777,1709328689473,-500.0,0.00022904,2]
[316031778,1709328689483,-653.12,0.00022904,2]
[316031779,1709328689494,-500.0,0.00022904,2]
[316031780,1709328689504,-544.86,0.00022904,2]
[316031781,1709328689514,-668.01,0.00022904,2]
[316031782,1709328689525,-517.53,0.00022904,2]
[316031783,1709328689535,-564.0,0.00022904,2]
[316031784,1709328689545,-11798.33,0.00022904,2]
[316031785,1709328689556,-500.0,0.00022904,2]
[316031786,1709328689565,-500.0,0.00022904,2]
[316031787,1709328689579,-500.0,0.00022904,2]
[316031788,1709328689589,-615.8,0.00022904,2]
[316031789,1709328689599,-500.0,0.00022904,2]
[316031790,1709328689610,-1178.7,0.00022904,2]
[316031791,1709328689619,-708.24,0.00022904,2]
[316031792,1709328689629,-500.0,0.00022904,2]
[316031793,1709328689639,-3036.11,0.00022904,2]
[316031794,1709328689649,-500.0,0.00022904,2]
[316031795,1709328689661,-819.23,0.00022904,2]
[316031796,1709328689670,-500.0,0.00022904,2]
[316031797,1709328689680,-568.79,0.00022904,2]
[316031798,1709328689691,-1291.29,0.00022904,2]
[316031799,1709328689701,-507.75,0.00022904,2]
[316031800,1709328689711,-661.02,0.00022904,2]
[316031801,1709328689721,-500.0,0.00022904,2]
[316031802,1709328689731,-592.43,0.00022904,2]
[316031803,1709328689742,-1204.1,0.00022904,2]
[316031804,1709328689753,-500.0,0.00022904,2]
[316031805,1709328689763,-159.62,0.00022904,2]
[316031806,1709328689774,-1481.86,0.00022904,2]
[316031807,1709328689784,-500.0,0.00022904,2]
[316031808,1709328689794,-783.92,0.00022904,2]
[316031809,1709328689805,-500.0,0.00022904,2]
[316031810,1709328689815,-2213.26,0.00022904,2]
[316031811,1709328689826,-500.0,0.00022904,2]
[316031812,1709328689836,-782.94,0.00022904,2]
[316031813,1709328689847,-1312.48,0.00022904,2]
[316031814,1709328689858,-500.0,0.00022904,2]
[316031815,1709328689868,-836.34,0.00022904,2]
[316031816,1709328689878,-1408.63,0.00022904,2]
[316031817,1709328689889,-552.95,0.00022904,2]
[316031818,1709328689899,-877.39,0.00022904,2]
[316031819,1709328689911,-726.46,0.00022904,2]
[316031820,1709328689921,-500.0,0.00022904,2]
[316031821,1709328689931,-1437.05,0.00022904,2]
[316031822,1709328689942,-500.0,0.00022904,2]
[316031823,1709328689952,-2294.72,0.00022904,2]
[316031824,1709328689962,-906.87,0.00022904,2]
[316031825,1709328689973,-685.72,0.00022904,2]
[316031826,1709328689983,-786.95,0.00022904,2]
[316031827,1709328689994,-500.0,0.00022904,2]
[316031828,1709328690004,-500.0,0.00022904,2]
[316031829,1709328690014,-571.0,0.00022904,2]
[316031830,1709328690025,-1703.63,0.00022904,2]
[316031831,1709328690035,-2645.44,0.00022904,2]
[316031832,1709328690046,-923.63,0.00022904,2]
[316031833,1709328690058,-572.96,0.00022904,2]
[316031834,1709328690068,-874.1,0.00022904,2]
[316031835,1709328690079,-500.0,0.00022904,2]
[316031836,1709328690089,-2609.99,0.00022904,2]
[316031837,1709328690100,-500.0,0.00022904,2]
[316031838,1709328690111,-4819.61,0.00022904,2]
[316031839,1709328690121,-1024.04,0.00022904,2]
[316031840,1709328690131,-500.0,0.00022904,2]
[316031841,1709328690141,-567.41,0.00022904,2]
[316031842,1709328690154,-1364.46,0.00022904,2]
[316031843,1709328690164,-1947.64,0.00022904,2]
[316031844,1709328690175,-961.79,0.00022904,2]
[316031845,1709328690185,-1664.45,0.00022904,2]
[316031846,1709328690195,-500.0,0.00022904,2]
[316031847,1709328690206,-500.0,0.00022904,2]
[316031848,1709328690217,-2683.61,0.00022904,2]
[316031849,1709328690228,-591.44,0.00022904,2]
[316031850,1709328690238,-5623.01,0.00022904,2]
[316031851,1709328690249,-500.0,0.00022904,2]
[316031852,1709328690261,-3786.07,0.00022904,2]
[316031853,1709328690272,-500.0,0.00022904,2]
[316031854,1709328690283,-1383.65,0.00022904,2]
[316031855,1709328690295,-648.5,0.00022904,2]
[316031856,1709328690306,-9217.98,0.00022904,2]
[316031857,1709328690317,-561.4,0.00022904,2]
[316031858,1709328690329,-11675.57,0.00022904,2]
[316031859,1709328690340,-1723.27,0.00022904,2]
[316031860,1709328690352,-8684.27,0.00022904,2]
[316031861,1709328690366,-702.09,0.00022904,2]
[316031862,1709328690379,-392.59,0.00022904,2]
[316031863,1709328690391,-3567.05,0.00022904,2]
[316031864,1709328690404,-3405.56,0.00022904,2]
[316031865,1709328690418,-2872.71,0.00022904,2]
[316031866,1709328690430,-4829.55,0.00022904,2]
[316031867,1709328690442,-7070.51,0.00022904,2]
[316031868,1709328690454,-500.0,0.00022904,2]
[316031869,1709328690465,-26810.74,0.00022904,2]
[316031870,1709328690476,-2983.15,0.00022904,2]
[316031871,1709328690486,-500.0,0.00022904,2]
[316031872,1709328690497,-719.44,0.00022904,2]
[316031873,1709328690507,-6899.63,0.00022904,2]
[316031874,1709328690518,-150.0,0.00022931,2]
[316031875,1709328690528,-150.0,0.00022939,2]
[316031876,1709328690539,-475.39,0.00022952,2]
[316031877,1709328690549,-1000.0,0.0002297,2]
[316031878,1709328690561,-1000.0,0.0002297,2]
[316031879,1709328690571,-1000.0,0.0002297,2]
[316031880,1709328690581,-1450.0,0.0002297,2]
[316031881,1709328690593,-1000.0,0.0002297,2]
[316031882,1709328690603,-150.0,0.00022981,2]
[316031883,1709328690614,-3204.6895541,0.00022991,2]
[316031884,1709328690624,-4421.8962837,0.00022991,2]
[316031885,1709328690634,-289.29926922,0.00022991,2]
[316031886,1709328690644,-7122.3396519,0.00022991,2]
[316031887,1709328690656,-4417.8331552,0.00022993,2]
[316031888,1709328690667,-4956.5305405,0.00022993,2]
[316031889,1709328690677,-86573.2973472,0.00022993,2]
[316031890,1709328690688,-150.0,0.00022997,2]
[316031891,1709328690698,-384.50877493,0.00022997,2]
[316031892,1709328690708,-150.0,0.00022997,2]
[316031893,1709328690718,-155.19928272,0.00022998,2]
[316031894,1709328690729,-151.0,0.00022998,7]
[316031895,1709328690739,-151.0,0.00022998,7]
[316031896,1709328690750,-151.0,0.00022998,7]
[316031897,1709328690760,-151.0,0.00022998,7]
[316031898,1709328690770,-151.0,0.00022998,7]
[316031899,1709328690780,-151.0,0.00022998,7]
[316031900,1709328690790,-151.0,0.00022998,7]
[316031901,1709328690800,-151.0,0.00022998,7]
[316031902,1709328690810,-151.0,0.00022998,7]
[316031903,1709328690821,-151.0,0.00022998,2]
[316031904,1709328690831,-151.0,0.00022998,7]
[316031905,1709328690842,-151.0,0.00022998,7]
[316031906,1709328690854,-151.0,0.00022998,7]
[316031907,1709328690865,-151.0,0.00022998,2]
[316031908,1709328690877,-151.0,0.00022998,2]
[316031909,1709328690889,-151.0,0.00022998,7]
[316031910,1709328690901,-279.886984,0.00022998,7]
[316031911,1709328690915,-279.886984,0.00022998,7]
[316031912,1709328690926,-151.0,0.00022998,7]
[316031913,1709328690939,-151.0,0.00022998,7]
[316031914,1709328690949,-4990.18398372,0.00022999,2]
[316031915,1709328690959,-1000.0,0.00022999,2]
[316031916,1709328690970,-204.73380643,0.00022999,2]
[316031917,1709328690981,-383.6695,0.00022999,2]
[316031918,1709328690991,-133657.89,0.00022999,2]
[316031919,1709328691002,-190.874856,0.00022999,7]
[316031920,1709328691012,-151.0,0.00022999,7]
[316031921,1709328691023,-151.0,0.00022999,2]
[316031922,1709328691033,-384.50877493,0.00022999,2]
[316031923,1709328691044,-384.50877493,0.00022999,2]
[316031924,1709328691054,-150.0,0.00022999,2]
[316031925,1709328691066,-384.50877493,0.00022999,2]
[316031926,1709328691076,-150.0,0.00022999,2]
[316031927,1709328691087,-384.50877493,0.00022999,2]
[316031928,1709328691096,-150.0,0.00022999,2]
[316031929,1709328691106,-384.50877493,0.00022999,2]
[316031930,1709328691116,-150.0,0.00022999,2]
[316031931,1709328691126,-384.50877493,0.00022999,2]
[316031932,1709328691135,-150.0,0.00022999,2]
[316031933,1709328691146,-384.50877493,0.00022999,2]
[316031934,1709328691157,-150.0,0.00022999,2]
[316031935,1709328691167,-384.50877493,0.00022999,2]
[316031936,1709328691181,-150.0,0.00022999,2]
[316031937,1709328691191,-384.50877493,0.00022999,2]
[316031938,1709328691201,-384.50877493,0.00022999,2]
[316031939,1709328691211,-150.0,0.00022999,2]
[316031940,1709328691221,-384.50877493,0.00022999,2]
[316031941,1709328691231,-150.0,0.00022999,2]
[316031942,1709328691244,-384.50877493,0.00022999,2]
[316031943,1709328691254,-150.0,0.00022999,2]
[316031944,1709328691265,-384.50877493,0.00022999,2]
[316031945,1709328691275,-231.51055008,0.00022999,2]
[316031946,1709328691285,-384.50877493,0.00022999,2]
[316031947,1709328691295,-384.50877493,0.00022999,2]
[316031948,1709328691306,-384.50877493,0.00022999,2]
[316031949,1709328691316,-384.50877493,0.00022999,2]
[316031950,1709328691327,-384.50877493,0.00022999,2]
[316031951,1709328691337,-384.50877493,0.00022999,2]
[316031952,1709328691347,-384.50877493,0.00022999,2]
[316031953,1709328691357,-384.50877493,0.00022999,2]
[316031954,1709328691368,-384.50877493,0.00022999,2]
[316031955,1709328691378,-384.50877493,0.00022999,2]
[316031956,1709328691389,-275236.51515652,0.00023,2]
[316031957,1709328691414,-389651.1135751,0.00023,2]
[316031958,1709328691444,-369.93113102,0.00022999,2]
[316031959,1709328691511,-500.0,0.00021917,2]
[316031960,1709328691522,-944.86,0.00022575,2]
[316031961,1709328691532,-14.57764391,0.00022999,2]
[316031962,1709328691543,-2426.66703464,0.00023,2]
[316031963,1709328691556,-7423.21325161,0.00023,2]
[316031964,1709328691574,-884.54019659,0.00023,2]
[316031965,1709328691829,-632.680002,0.00023,2]
[316031966,1709328691841,-4102.02946677,0.00023,2]
[316031967,1709328691853,-865.69,0.00023,2]
[316031968,1709328692906,-188.24461265,0.00021407,2]
[316031969,1709328692917,-188.24461265,0.00021506,2]
[316031970,1709328692928,-500.0,0.00021917,2]
[316031971,1709328692939,-638.84,0.00021917,2]
[316031972,1709328692949,-500.0,0.00021917,2]
[316031973,1709328692960,-500.0,0.00022027,2]
[316031974,1709328692971,-500.0,0.00022027,2]
[316031975,1709328692981,-500.0,0.00022027,2]
[316031976,1709328692992,-500.0,0.00022136,2]
[316031977,1709328693002,-500.0,0.00022136,2]
[316031978,1709328693012,-500.0,0.00022136,2]
[316031979,1709328693026,-500.0,0.00022246,2]
[316031980,1709328693037,-500.0,0.00022246,2]
[316031981,1709328693049,-500.0,0.00022356,2]
[316031982,1709328693063,-500.0,0.00022465,2]
[316031983,1709328693073,-500.0,0.00022575,2]
[316031984,1709328693084,-944.86,0.00022684,2]
[316031985,1709328693096,-500.0,0.00022684,2]
[316031986,1709328693108,-944.86,0.00022794,2]
[316031987,1709328693119,-1105.01,0.00022794,2]
[316031988,1709328693128,-500.0,0.00022794,2]
[316031989,1709328693139,-944.86,0.00022904,2]
[316031990,1709328693151,-1105.01,0.00022904,2]
[316031991,1709328693162,-384.50877493,0.00022999,2]
[316031992,1709328693171,-384.50877493,0.00022999,2]
[316031993,1709328693181,-3814.8570466,0.00023,2]
[316031994,1709328693195,-1153.5,0.00023,2]
[316031995,1709328693208,-603.96343893,0.00023,2]
[316031996,1709328693311,-500.0,0.00022246,2]
[316031997,1709328693322,-5750.92319188,0.00023,2]
[316031998,1709328693436,-500.0,0.00021917,2]
[316031999,1709328693446,-500.0,0.00022027,2]
[316032000,1709328693456,-500.0,0.00022356,2]
[316032001,1709328693465,-500.0,0.00022465,2]
[316032002,1709328693475,-500.0,0.00022904,2]
[316032003,1709328693484,-384.50877493,0.00022999,2]
[316032004,1709328693494,-8812619.47199081,0.00023,2]
[316032005,1709328693506,-752.72296312,0.00023,2]
[316032006,1709328693518,-506.87153115,0.00023,2]
[316032007,1709328693535,-1127.12820996,0.00023,2]
[316032008,1709328693548,-3204.77286638,0.00023,2]
[316032009,1709328693559,-835.95418073,0.00023,2]
[316032010,1709328693736,-500.0,0.00022136,2]
[316032011,1709328693747,-199.48825218,0.00022246,2]
[316032012,1709328693760,-300.51174782,0.00022246,2]
[316032013,1709328693770,-314.18,0.00022356,2]
[316032014,1709328693780,-576.38,0.00022575,2]
[316032015,1709328693790,-384.50877493,0.00022999,2]
[316032016,1709328693799,-3335.63977343,0.00023,2]
[316032017,1709328693831,-880.36175698,0.00023,2]
[316032018,1709328693843,-1405.81876783,0.00023,2]
[316032019,1709328693855,-14428.19881909,0.00023,2]
[316032020,1709328693868,-26515.37398564,0.00023,2]
[316032021,1709328693886,-6278.41872,0.00023,2]
[316032022,1709328693909,-505.42510718,0.00023,2]
[316032023,1709328693921,-529.31421259,0.00023,2]
[316032024,1709328693942,-1223.34715648,0.00023,2]
[316032025,1709328693954,-314.18773176,0.00023,2]
[316032026,1709328695349,-204.88282971,0.00021505,2]
[316032027,1709328695360,-612.22801672,0.00021916,2]
[316032028,1709328695371,-500.0,0.00021917,2]
[316032029,1709328695392,-500.0,0.00021917,2]
[316032030,1709328695404,-500.0,0.00021917,2]
[316032031,1709328695420,-500.0,0.00021917,2]
[316032032,1709328695431,-500.0,0.00021917,2]
[316032033,1709328695442,-500.0,0.00021917,2]
[316032034,1709328695452,-500.0,0.00021917,2]
[316032035,1709328695462,-598.68,0.00021917,2]
[316032036,1709328695473,-500.0,0.00021917,2]
[316032037,1709328695482,-500.0,0.00021917,2]
[316032038,1709328695493,-500.0,0.00021917,2]
[316032039,1709328695503,-500.0,0.00022027,2]
[316032040,1709328695513,-66.42314054,0.00022027,2]
[316032041,1709328695527,-496.71685946,0.00022027,2]
[316032042,1709328695537,-500.0,0.00022027,2]
[316032043,1709328695547,-500.0,0.00022027,2]
[316032044,1709328695556,-500.0,0.00022027,2]
[316032045,1709328695566,-500.0,0.00022027,2]
[316032046,1709328695576,-598.68,0.00022027,2]
[316032047,1709328695587,-500.0,0.00022027,2]
[316032048,1709328695596,-500.0,0.00022027,2]
[316032049,1709328695607,-500.0,0.00022027,2]
[316032050,1709328695618,-500.0,0.00022027,2]
[316032051,1709328695628,-500.0,0.00022136,2]
[316032052,1709328695638,-500.0,0.00022136,2]
[316032053,1709328695649,-305.93505546,0.00022136,2]
[316032054,1709328695659,-500.0,0.00022136,2]
[316032055,1709328695669,-598.68,0.00022136,2]
[316032056,1709328695680,-500.0,0.00022136,2]
[316032057,1709328695691,-500.0,0.00022136,2]
[316032058,1709328695701,-268.52630445,0.00022136,2]
[316032059,1709328695714,-231.47369555,0.00022136,2]
[316032060,1709328695723,-579.62187761,0.00022146,2]
[316032061,1709328695733,-523.14666073,0.00022246,2]
[316032062,1709328695743,-500.0,0.00022246,2]
[316032063,1709328695754,-500.0,0.00022246,2]
[316032064,1709328695764,-598.68,0.00022246,2]
[316032065,1709328695774,-500.0,0.00022246,2]
[316032066,1709328695785,-500.0,0.00022246,2]
[316032067,1709328695796,-500.0,0.00022246,2]
[316032068,1709328695808,-500.0,0.00022356,2]
[316032069,1709328695818,-598.68,0.00022356,2]
[316032070,1709328695829,-500.0,0.00022356,2]
[316032071,1709328695839,-598.68,0.00022465,2]
[316032072,1709328695850,-500.0,0.00022465,2]
[316032073,1709328695861,-598.68,0.00022575,2]
[316032074,1709328695871,-500.0,0.00022575,2]
[316032075,1709328695882,-598.68,0.00022684,2]
[316032076,1709328695892,-500.0,0.00022684,2]
[316032077,1709328695903,-598.68,0.00022794,2]
[316032078,1709328695914,-500.0,0.00022794,2]
[316032079,1709328695924,-598.68,0.00022904,2]
[316032080,1709328695935,-384.50877493,0.00022999,2]
[316032081,1709328695946,-384.50877493,0.00022999,2]
[316032082,1709328695957,-769.01754975,0.00022999,2]
[316032083,1709328695967,-1663.70313674,0.00023,2]
[316032084,1709328695981,-858.606717,0.00023,2]
[316032085,1709328696066,-309.18,0.00021917,2]
[316032086,1709328696151,-221.92,0.00021917,2]
[316032087,1709328696163,-500.0,0.00022904,2]
[316032088,1709328696174,-1278.08,0.00023,2]
[316032089,1709328696188,-403.04925484,0.00023,2]
[316032090,1709328697052,-549.39783028,0.00023,2]
[316032091,1709328697074,-308.25,0.00023,2]
[316032092,1709328697119,-0.01844419,0.00023,2]
[316032093,1709328697131,-179578.83890556,0.00023,2]
[316032094,1709328697153,-794.0033412,0.00023,2]
[316032095,1709328697166,-442.82396974,0.00023,2]
[316032096,1709328697179,-12115.4771066,0.00023,2]
[316032097,1709328697192,-66740.15362604,0.00023,2]
[316032099,1709328824982,151.0,0.00026749,120]
[316032101,1709329085102,201.0,0.00018387,2]
[316032102,1709329104349,651.25,0.00017966,2]
[316032104,1709329276288,-311.222866,0.0001932,2]
[316032105,1709329276315,-300.0,0.00019733,2]
[316032106,1709329276339,-172.65,0.00019734,2]
[316032107,1709329276363,-11447.72,0.00019734,2]
[316032108,1709329276386,-155.93,0.00019734,2]
[316032109,1709329276407,-233.40673557,0.00019848,2]
[316032110,1709329276429,-545.18,0.00019865,2]
[316032111,1709329276453,-500.0,0.00019879,2]
[316032112,1709329276475,-600.0,0.00019884,2]
[316032113,1709329276500,-201.0,0.00019928,4]
[316032114,1709329276522,-468.54,0.00019994,2]
[316032115,1709329276544,-550.0,0.0002,3]
[316032116,1709329278350,151.0,0.00026885,120]
[316032117,1709329311444,-182.81283608,0.00020047,2]
[316032118,1709329311467,-250.0,0.00020048,2]
[316032119,1709329311489,-651.25,0.0002023,2]
[316032120,1709329311511,-499.99,0.0002023,2]
[316032121,1709329311533,-250.0,0.00020376,2]
[316032122,1709329311556,-172.65,0.00020392,2]
[316032123,1709329311578,-169.0,0.00020451,2]
[316032124,1709329362073,199.53,0.00020337,2]
[316032125,1709329363540,159.38,0.00020337,2]
[316032126,1709329385256,150.0,0.00020364,2]
[316032128,1709329425034,268.27,0.00020043,2]
[316032129,1709329431133,170.07,0.00019884,2]
[316032130,1709329434830,12035.99,0.00020294,2]
[316032132,1709329444300,201.0,0.0002047,2]
[316032133,1709329485425,250.0,0.00020203,2]
[316032135,1709329638316,250.0,0.00019884,2]
[316032136,1709329651565,620.69,0.00018227,2]
[316032137,1709329652225,620.69,0.00020491,2]
[316032138,1709329660871,520.0,0.00020119,2]
[316032139,1709329687981,363.45,0.00020115,2]
[316032140,1709329714544,204.0,0.0002047,2]
[316032141,1709329715951,150.0,0.000201,2]
[316032142,1709329722909,166.07,0.00019884,10]
[316032143,1709329737581,234.27,0.00019884,2]
[316032147,1709329784277,237.32970097,0.00020429,2]
[316032148,1709329786713,178.0,0.00020364,2]
[316032149,1709329790375,500.0,0.00019922,2]
[316032150,1709329790422,331.15813948,0.0002,7]
[316032151,1709329805190,164.64,0.00019849,2]
[316032152,1709329808926,368.54,0.00019854,2]
[316032163,1709329832488,-182.81283608,0.00020523,2]
[316032164,1709329832498,-628.66740198,0.00020523,2]
[316032165,1709329832508,-1085.76971254,0.00020524,2]
[316032166,1709329832517,-404.92311093,0.00020524,2]
[316032167,1709329832526,-311.222866,0.00020525,2]
[316032168,1709329832536,-822.86026723,0.00020525,2]
[316032169,1709329832546,-612.22801672,0.00020526,2]
[316032170,1709329832555,-234.84782212,0.00020527,2]
[316032171,1709329832564,-2041.18430283,0.00020527,2]
[316032172,1709329832587,-2877.24569717,0.00020527,2]
[316032173,1709329832596,-5755.64888849,0.00020527,2]
[316032175,1709329832605,-204.01923883,0.00020528,2]
[316032177,1709329832614,-11172.24822604,0.00020528,2]
[316032181,1709329832635,-16956.06903098,0.00020528,2]
[316032183,1709329832646,-250.0,0.00020528,2]
[316032185,1709329832657,-1408.90735061,0.00020528,2]
[316032188,1709329832669,-362.1013399,0.00020528,2]
[316032193,1709329832706,-11586.74992604,0.00020528,2]
[316032195,1709329832717,-748.44402773,0.00020528,2]
[316032200,1709329832753,-13682.83951199,0.00020528,2]
[316032202,1709329832764,-543.29728188,0.00020528,2]
[316032204,1709329832775,-684.71908266,0.00020528,2]
[316032208,1709329832803,-6592.33693226,0.00020528,2]
[316032215,1709329838102,-521.0,0.00020522,2]
[316032216,1709329838112,-4926.0,0.00020526,2]
[316032217,1709329838122,-102529.30647991,0.00020528,2]
[316032218,1709329838132,-1024.95914113,0.0002053,2]
[316032219,1709329838141,-159.38,0.00020676,2]
[316032220,1709329838150,-150.0,0.00020712,2]
[316032221,1709329838159,-17611.16211708,0.00020726,2]
[316032222,1709329838169,-199.87038409,0.00020727,2]
[316032223,1709329838178,-1059.54,0.00020729,2]
[316032224,1709329838189,-9999.99,0.0002073,2]
[316032225,1709329838199,-4950.97,0.0002073,2]
[316032226,1709329838208,-6332.944,0.00020746,2]
[316032227,1709329838218,-500.0,0.00020746,2]
[316032228,1709329838227,-1770.63815944,0.00020747,2]
[316032229,1709329838237,-1770.63815944,0.00020747,2]
[316032230,1709329838246,-2920.7469,0.00020747,2]
[316032231,1709329838255,-2500.0,0.00020747,2]
[316032232,1709329838265,-1061.29106493,0.00020748,2]
[316032233,1709329838274,-207.34665586,0.00020817,2]
[316032234,1709329838283,-1588.83854076,0.00020817,2]
[316032235,1709329838292,-422.67311678,0.00020836,2]
[316032236,1709329838302,-428.58,0.00020836,2]
[316032237,1709329838311,-428.58,0.00020837,2]
[316032238,1709329838320,-392.24,0.00020838,2]
[316032239,1709329838329,-499.99,0.00020838,2]
[316032240,1709329838338,-523.1887831,0.00020838,2]
[316032241,1709329838347,-428.58,0.00020838,2]
[316032242,1709329838356,-428.58,0.00020838,2]
[316032243,1709329838365,-5732.87271226,0.00020839,2]
[316032244,1709329838374,-164.64,0.00020841,2]
[316032245,1709329838383,-256.2672157,0.00020846,2]
[316032246,1709329838393,-707.04218448,0.00020846,2]
[316032247,1709329838402,-155.0,0.00020846,2]
[316032248,1709329838412,-1100.90643413,0.00020846,2]
[316032249,1709329838422,-193.08461262,0.00020846,2]